[Event "*** Titled Tuesday Blitz"]
[Site "Chess.com"]
[Date "2020.10.20"]
[Round "5"]
[White "Swarnapuri"]
[Black "Guenplen"]
[Result "1/2-1/2"]
[WhiteElo "2623"]
[BlackElo "2839"]
[TimeControl "180+1"]
[EndTime "10:58:14 PDT"]
[Termination "Game drawn by repetition"]

1. d4 {[%clk 0:03:00.9]} 1... d5 {[%clk 0:02:55.6]} 2. Bf4 {[%clk 0:03:00.8]}
2... c5 {[%clk 0:02:55.3]} 3. e3 {[%clk 0:03:01.1]} 3... Nc6 {[%clk 0:02:55.5]}
4. c3 {[%clk 0:03:01.4]} 4... cxd4 {[%clk 0:02:54.2]} 5. exd4 {[%clk 0:03:01.8]}
5... Bf5 {[%clk 0:02:54.1]} 6. Qb3 {[%clk 0:02:57.9]} 6... Qd7 {[%clk
0:02:53.5]} 7. Nf3 {[%clk 0:02:57.7]} 7... e6 {[%clk 0:02:53.8]} 8. Ne5 {[%clk
0:02:39.3]} 8... Nxe5 {[%clk 0:02:53.5]} 9. Bxe5 {[%clk 0:02:40.2]} 9... Ne7
{[%clk 0:02:53.1]} 10. Nd2 {[%clk 0:02:40.5]} 10... Nc6 {[%clk 0:02:51.3]} 11.
Nf3 {[%clk 0:02:41.1]} 11... f6 {[%clk 0:02:50.7]} 12. Bg3 {[%clk 0:02:37.9]}
12... g5 {[%clk 0:02:49.6]} 13. Be2 {[%clk 0:02:31.4]} 13... h5 {[%clk
0:02:48.7]} 14. h3 {[%clk 0:02:26.5]} 14... h4 {[%clk 0:02:42.8]} 15. Bh2 {[%clk
0:02:26.4]} 15... Be7 {[%clk 0:02:43]} 16. Nd2 {[%clk 0:02:24.7]} 16... Kf7
{[%clk 0:02:40.1]} 17. Nf1 {[%clk 0:02:23.9]} 17... a6 {[%clk 0:02:30.9]} 18.
Ne3 {[%clk 0:02:23.6]} 18... Be4 {[%clk 0:02:26.9]} 19. O-O {[%clk 0:02:22.9]}
19... Na5 {[%clk 0:02:18.6]} 20. Qd1 {[%clk 0:02:22.5]} 20... Bd6 {[%clk
0:02:16.9]} 21. f4 {[%clk 0:02:21.7]} 21... Rag8 {[%clk 0:02:13.1]} 22. fxg5
{[%clk 0:01:55.8]} 22... Bxh2+ {[%clk 0:02:07.7]} 23. Kxh2 {[%clk 0:01:56.7]}
23... Qd6+ {[%clk 0:02:04.2]} 24. Kh1 {[%clk 0:01:40.2]} 24... Rxg5 {[%clk
0:02:04.4]} 25. Bf3 {[%clk 0:01:31.2]} 25... f5 {[%clk 0:01:49.6]} 26. Qe1
{[%clk 0:01:09.6]} 26... Nc6 {[%clk 0:01:08.9]} 27. Bxe4 {[%clk 0:01:06.6]}
27... dxe4 {[%clk 0:01:07.6]} 28. d5 {[%clk 0:01:07.5]} 28... Ne5 {[%clk
0:01:03.9]} 29. dxe6+ {[%clk 0:00:48.8]} 29... Kxe6 {[%clk 0:01:04.8]} 30. Nxf5
{[%clk 0:00:49.7]} 30... Rxf5 {[%clk 0:01:02.2]} 31. Qxe4 {[%clk 0:00:41]} 31...
Rhf8 {[%clk 0:00:55.2]} 32. Rxf5 {[%clk 0:00:40.3]} 32... Rxf5 {[%clk
0:00:56.1]} 33. Qxh4 {[%clk 0:00:41]} 33... Qd3 {[%clk 0:00:47.5]} 34. Qh8
{[%clk 0:00:35]} 34... Rf1+ {[%clk 0:00:42.6]} 35. Rxf1 {[%clk 0:00:34.6]} 35...
Qxf1+ {[%clk 0:00:43.5]} 36. Kh2 {[%clk 0:00:35.5]} 36... Qf4+ {[%clk
0:00:44.2]} 37. Kh1 {[%clk 0:00:34.3]} 37... Qc1+ {[%clk 0:00:28.3]} 38. Kh2
{[%clk 0:00:34.9]} 38... Qxb2 {[%clk 0:00:25.9]} 39. Qc8+ {[%clk 0:00:32.4]}
39... Kf6 {[%clk 0:00:18.4]} 40. Qd8+ {[%clk 0:00:32.2]} 40... Kf5 {[%clk
0:00:16.5]} 41. Qc8+ {[%clk 0:00:18.3]} 41... Kf4 {[%clk 0:00:15]} 42. Qf8+
{[%clk 0:00:17.8]} 42... Ke4 {[%clk 0:00:10.5]} 43. Qc5 {[%clk 0:00:14.4]} 43...
Qd2 {[%clk 0:00:05.5]} 44. Kh1 {[%clk 0:00:07]} 44... Qe1+ {[%clk 0:00:03.1]}
45. Kh2 {[%clk 0:00:07.3]} 45... Qe3 {[%clk 0:00:02.3]} 46. Qc7 {[%clk
0:00:05.8]} 46... Qf4+ {[%clk 0:00:01.9]} 47. Kh1 {[%clk 0:00:06.3]} 47... Qc1+
{[%clk 0:00:02.2]} 48. Kh2 {[%clk 0:00:06.5]} 48... Qf4+ {[%clk 0:00:03.1]} 49.
Kh1 {[%clk 0:00:06.9]} 49... b5 {[%clk 0:00:03.7]} 50. Qb7+ {[%clk 0:00:06.7]}
50... Ke3 {[%clk 0:00:04]} 51. Qxa6 {[%clk 0:00:07.4]} 51... Qf1+ {[%clk
0:00:03.8]} 52. Kh2 {[%clk 0:00:07.8]} 52... Qf4+ {[%clk 0:00:04.4]} 53. Kh1
{[%clk 0:00:08.1]} 53... Qf1+ {[%clk 0:00:04.4]} 54. Kh2 {[%clk 0:00:08.6]}
54... Qf4+ {[%clk 0:00:02.2]} 55. Kh1 {[%clk 0:00:09]} 1/2-1/2

[Event "*** Titled Tuesday Blitz"]
[Site "Chess.com"]
[Date "2020.10.20"]
[Round "5"]
[White "Rodalquilar"]
[Black "Orest_Vovk"]
[Result "0-1"]
[WhiteElo "2710"]
[BlackElo "2501"]
[TimeControl "180+1"]
[EndTime "10:58:14 PDT"]
[Termination "Orest_Vovk won on time"]

1. d4 {[%clk 0:03:00.9]} 1... Nc6 {[%clk 0:02:59.2]} 2. Nf3 {[%clk 0:02:59.9]}
2... d6 {[%clk 0:02:55.8]} 3. e4 {[%clk 0:02:59.5]} 3... Bg4 {[%clk 0:02:53.8]}
4. Be3 {[%clk 0:02:59.3]} 4... e6 {[%clk 0:02:53.2]} 5. Be2 {[%clk 0:02:51]}
5... Be7 {[%clk 0:02:53.2]} 6. O-O {[%clk 0:02:50.9]} 6... Bxf3 {[%clk
0:02:52.3]} 7. Bxf3 {[%clk 0:02:51]} 7... Bg5 {[%clk 0:02:52.9]} 8. Qd2 {[%clk
0:02:46.4]} 8... Bxe3 {[%clk 0:02:52.2]} 9. Qxe3 {[%clk 0:02:47.3]} 9... Nge7
{[%clk 0:02:48.6]} 10. Nd2 {[%clk 0:02:09.9]} 10... O-O {[%clk 0:02:46.3]} 11.
Be2 {[%clk 0:02:10.2]} 11... e5 {[%clk 0:02:35.4]} 12. c3 {[%clk 0:02:10]} 12...
f5 {[%clk 0:02:30]} 13. f3 {[%clk 0:02:07.1]} 13... f4 {[%clk 0:02:21.4]} 14.
Qf2 {[%clk 0:02:07.1]} 14... Ng6 {[%clk 0:02:17.7]} 15. Rfd1 {[%clk 0:01:57.8]}
15... Qg5 {[%clk 0:02:16.4]} 16. Bc4+ {[%clk 0:01:43.7]} 16... Kh8 {[%clk
0:02:15.6]} 17. Bd5 {[%clk 0:01:44.1]} 17... Rf6 {[%clk 0:02:04.7]} 18. Nc4
{[%clk 0:01:33.6]} 18... Nh4 {[%clk 0:01:58.3]} 19. Bxc6 {[%clk 0:01:31.1]}
19... bxc6 {[%clk 0:01:57.6]} 20. dxe5 {[%clk 0:01:31.6]} 20... dxe5 {[%clk
0:01:57.8]} 21. Rd2 {[%clk 0:01:20.7]} 21... Rg6 {[%clk 0:01:55.2]} 22. Rad1
{[%clk 0:01:18.3]} 22... h6 {[%clk 0:01:54.3]} 23. Kh1 {[%clk 0:00:51]} 23...
Qh5 {[%clk 0:01:48.9]} 24. Qf1 {[%clk 0:00:48.4]} 24... Kh7 {[%clk 0:01:39]} 25.
Rf2 {[%clk 0:00:44.1]} 25... Re8 {[%clk 0:01:20.7]} 26. Qe2 {[%clk 0:00:41.5]}
26... Rg5 {[%clk 0:01:17.3]} 27. Kg1 {[%clk 0:00:23.3]} 27... Re6 {[%clk
0:01:16.2]} 28. Kf1 {[%clk 0:00:23.7]} 28... Reg6 {[%clk 0:01:16]} 29. Rd2
{[%clk 0:00:24.2]} 29... Nxg2 {[%clk 0:01:10.5]} 30. Rxg2 {[%clk 0:00:23.9]}
30... Rxg2 {[%clk 0:01:10.4]} 31. Qxg2 {[%clk 0:00:21.7]} 31... Rxg2 {[%clk
0:01:10.5]} 32. Kxg2 {[%clk 0:00:22.6]} 32... Qg6+ {[%clk 0:01:10.7]} 33. Kf2
{[%clk 0:00:21.9]} 33... Qe6 {[%clk 0:01:10.8]} 34. b3 {[%clk 0:00:22.1]} 34...
Qh3 {[%clk 0:01:08.3]} 35. Nxe5 {[%clk 0:00:20.4]} 35... Qxh2+ {[%clk
0:01:08.3]} 36. Ke1 {[%clk 0:00:21]} 36... Qg1+ {[%clk 0:01:04.3]} 37. Ke2
{[%clk 0:00:21.3]} 37... Qe3+ {[%clk 0:01:04.1]} 38. Kd1 {[%clk 0:00:21.6]}
38... Qxc3 {[%clk 0:01:03.4]} 39. Nd3 {[%clk 0:00:19.9]} 39... Qa1+ {[%clk
0:00:56.2]} 40. Ke2 {[%clk 0:00:19.1]} 40... Qf6 {[%clk 0:00:51]} 41. e5 {[%clk
0:00:17.9]} 41... Qf5 {[%clk 0:00:51.2]} 42. Kd1 {[%clk 0:00:14.7]} 42... h5
{[%clk 0:00:48.8]} 43. Kc2 {[%clk 0:00:14.6]} 43... g5 {[%clk 0:00:47.8]} 44.
Re2 {[%clk 0:00:11]} 44... Kg7 {[%clk 0:00:38.8]} 45. e6 {[%clk 0:00:11.1]}
45... Kf8 {[%clk 0:00:39.1]} 46. Re5 {[%clk 0:00:11.4]} 46... Qg6 {[%clk
0:00:34.1]} 47. e7+ {[%clk 0:00:08]} 47... Ke8 {[%clk 0:00:33.9]} 48. Kd2 {[%clk
0:00:07.9]} 48... h4 {[%clk 0:00:31.9]} 49. Re4 {[%clk 0:00:04.6]} 49... h3
{[%clk 0:00:29.8]} 50. Nf2 {[%clk 0:00:05.1]} 50... h2 {[%clk 0:00:27.6]} 51.
Ke2 {[%clk 0:00:05.6]} 51... Qh7 {[%clk 0:00:25.1]} 52. Ng4 {[%clk 0:00:03.8]}
52... Qh8 {[%clk 0:00:19.3]} 53. Ne5 {[%clk 0:00:02.1]} 53... h1=Q {[%clk
0:00:17]} 54. Nxc6 {[%clk 0:00:02.7]} 54... Qb2+ {[%clk 0:00:15.8]} 55. Kd3
{[%clk 0:00:02.9]} 55... Qd1+ {[%clk 0:00:14.7]} 56. Kc4 {[%clk 0:00:03.2]}
56... Qbc2+ {[%clk 0:00:14]} 57. Kb5 {[%clk 0:00:03.7]} 57... Qd5+ {[%clk
0:00:13.8]} 58. Ka4 {[%clk 0:00:03.5]} 58... Qcxc6+ {[%clk 0:00:13.5]} 59. Ka3
{[%clk 0:00:04]} 59... Qxe4 {[%clk 0:00:13.7]} 0-1

[Event "*** Titled Tuesday Blitz"]
[Site "Chess.com"]
[Date "2020.10.20"]
[Round "5"]
[White "Xeniya2005"]
[Black "xamax2000"]
[Result "0-1"]
[WhiteElo "2409"]
[BlackElo "2667"]
[TimeControl "180+1"]
[EndTime "10:58:15 PDT"]
[Termination "xamax2000 won by resignation"]

1. e4 {[%clk 0:02:55.7]} 1... c6 {[%clk 0:02:53.5]} 2. d4 {[%clk 0:02:54.5]}
2... d5 {[%clk 0:02:37.7]} 3. Nd2 {[%clk 0:02:52.8]} 3... dxe4 {[%clk
0:02:33.9]} 4. Nxe4 {[%clk 0:02:53.7]} 4... Nf6 {[%clk 0:02:33.7]} 5. Nxf6+
{[%clk 0:02:52.5]} 5... exf6 {[%clk 0:02:34.6]} 6. c3 {[%clk 0:02:50.5]} 6...
Bd6 {[%clk 0:02:35]} 7. Bd3 {[%clk 0:02:49.3]} 7... O-O {[%clk 0:02:19.8]} 8.
Ne2 {[%clk 0:02:47.5]} 8... Re8 {[%clk 0:02:18.7]} 9. Qc2 {[%clk 0:02:46.5]}
9... h5 {[%clk 0:02:18.3]} 10. O-O {[%clk 0:02:45.4]} 10... h4 {[%clk
0:02:18.1]} 11. h3 {[%clk 0:02:42.7]} 11... Nd7 {[%clk 0:02:16.3]} 12. Be3
{[%clk 0:02:40.4]} 12... Nf8 {[%clk 0:02:14.6]} 13. Qd2 {[%clk 0:02:38]} 13...
g5 {[%clk 0:01:58.2]} 14. Rae1 {[%clk 0:02:25.1]} 14... Bc7 {[%clk 0:01:42.5]}
15. f4 {[%clk 0:02:14]} 15... Qd6 {[%clk 0:01:20.6]} 16. c4 {[%clk 0:02:05.9]}
16... g4 {[%clk 0:01:17.1]} 17. hxg4 {[%clk 0:01:57.3]} 17... Bxg4 {[%clk
0:01:18]} 18. Nc3 {[%clk 0:01:55.1]} 18... f5 {[%clk 0:00:59.9]} 19. Qf2 {[%clk
0:01:47.3]} 19... Ng6 {[%clk 0:00:54.6]} 20. d5 {[%clk 0:01:41.2]} 20... Qd7
{[%clk 0:00:37.3]} 21. Kh1 {[%clk 0:01:07.6]} 21... a6 {[%clk 0:00:19.1]} 22. a4
{[%clk 0:01:02.5]} 22... Re7 {[%clk 0:00:14.1]} 23. Bd4 {[%clk 0:00:37.9]} 23...
Bxf4 {[%clk 0:00:11.3]} 24. Bf6 {[%clk 0:00:29.9]} 24... Rxe1 {[%clk 0:00:10.4]}
25. Qxe1 {[%clk 0:00:28.7]} 25... Re8 {[%clk 0:00:09.9]} 26. Ne2 {[%clk
0:00:22.3]} 26... Bg3 {[%clk 0:00:09]} 27. Qd2 {[%clk 0:00:20.6]} 27... f4
{[%clk 0:00:07.2]} 28. Nxf4 {[%clk 0:00:20]} 28... Nxf4 {[%clk 0:00:06.6]} 29.
Rxf4 {[%clk 0:00:19.3]} 29... Re1+ {[%clk 0:00:06.6]} 30. Rf1 {[%clk 0:00:17.8]}
30... Rxf1+ {[%clk 0:00:06.6]} 31. Bxf1 {[%clk 0:00:17.1]} 31... Qf5 {[%clk
0:00:07.5]} 32. Qg5+ {[%clk 0:00:14.7]} 32... Qxg5 {[%clk 0:00:07.6]} 33. Bxg5
{[%clk 0:00:15.6]} 33... cxd5 {[%clk 0:00:08.2]} 34. cxd5 {[%clk 0:00:14.3]}
34... Kf8 {[%clk 0:00:07.2]} 35. Bd3 {[%clk 0:00:12.7]} 35... Ke8 {[%clk
0:00:07.2]} 36. Bc4 {[%clk 0:00:11.1]} 36... Kd7 {[%clk 0:00:07.3]} 37. Kg1
{[%clk 0:00:11.1]} 37... Kd6 {[%clk 0:00:07.1]} 38. Kf1 {[%clk 0:00:11.2]} 38...
Kc5 {[%clk 0:00:07.2]} 39. Be2 {[%clk 0:00:11]} 39... Bxe2+ {[%clk 0:00:06.1]}
40. Kxe2 {[%clk 0:00:10.9]} 40... Kxd5 {[%clk 0:00:07]} 41. Kd3 {[%clk
0:00:10.6]} 41... f5 {[%clk 0:00:06.7]} 42. Ke3 {[%clk 0:00:10]} 42... Kc4
{[%clk 0:00:06.4]} 43. Kd2 {[%clk 0:00:09.2]} 43... f4 {[%clk 0:00:06.2]} 44.
Ke2 {[%clk 0:00:08.1]} 44... Kb3 {[%clk 0:00:06.3]} 45. Bf6 {[%clk 0:00:08]}
45... Kxa4 {[%clk 0:00:06.3]} 46. Kf3 {[%clk 0:00:07.8]} 46... Kb3 {[%clk
0:00:06.6]} 47. Kg4 {[%clk 0:00:07.9]} 47... b5 {[%clk 0:00:06.9]} 48. Kf3
{[%clk 0:00:07.9]} 48... b4 {[%clk 0:00:06.9]} 49. Kg4 {[%clk 0:00:07.5]} 49...
a5 {[%clk 0:00:07.1]} 50. Kh3 {[%clk 0:00:07.2]} 50... a4 {[%clk 0:00:07.5]} 51.
Kg4 {[%clk 0:00:06.6]} 51... Kc4 {[%clk 0:00:07.3]} 52. Kh3 {[%clk 0:00:04.8]}
52... b3 {[%clk 0:00:07.7]} 53. Bg7 {[%clk 0:00:04.5]} 53... Kd3 {[%clk
0:00:07.9]} 54. Bf6 {[%clk 0:00:04.2]} 54... Bf2 {[%clk 0:00:08.1]} 55. Bg7
{[%clk 0:00:03.5]} 55... Bd4 {[%clk 0:00:08.7]} 56. Bxd4 {[%clk 0:00:03.2]}
56... Kxd4 {[%clk 0:00:09.6]} 0-1

[Event "*** Titled Tuesday Blitz"]
[Site "Chess.com"]
[Date "2020.10.20"]
[Round "5"]
[White "TheBigBoss04"]
[Black "Fusikk"]
[Result "1-0"]
[WhiteElo "2738"]
[BlackElo "2523"]
[TimeControl "180+1"]
[EndTime "10:58:17 PDT"]
[Termination "TheBigBoss04 won by resignation"]

1. Nf3 {[%clk 0:03:00.9]} 1... d5 {[%clk 0:02:45.3]} 2. e3 {[%clk 0:03:00]} 2...
g6 {[%clk 0:02:43]} 3. c4 {[%clk 0:02:57.8]} 3... c6 {[%clk 0:02:42.4]} 4. Nc3
{[%clk 0:02:55.4]} 4... Bg7 {[%clk 0:02:41.3]} 5. d4 {[%clk 0:02:55.7]} 5... Nf6
{[%clk 0:02:40.1]} 6. Be2 {[%clk 0:02:55.5]} 6... O-O {[%clk 0:02:40.4]} 7. O-O
{[%clk 0:02:55.9]} 7... Bg4 {[%clk 0:02:38.5]} 8. b3 {[%clk 0:02:44.8]} 8... Ne4
{[%clk 0:02:26.8]} 9. Bb2 {[%clk 0:02:12.9]} 9... e6 {[%clk 0:02:19]} 10. Nxe4
{[%clk 0:01:53.7]} 10... dxe4 {[%clk 0:02:18.6]} 11. Nd2 {[%clk 0:01:54.2]}
11... Bxe2 {[%clk 0:02:14.5]} 12. Qxe2 {[%clk 0:01:55.1]} 12... f5 {[%clk
0:02:09.4]} 13. Rad1 {[%clk 0:01:35.8]} 13... Nd7 {[%clk 0:02:03.8]} 14. f3
{[%clk 0:01:33.4]} 14... exf3 {[%clk 0:02:00.9]} 15. Nxf3 {[%clk 0:01:10.1]}
15... Nf6 {[%clk 0:01:37.8]} 16. Ne5 {[%clk 0:01:09.1]} 16... Ne4 {[%clk
0:01:36.1]} 17. Nd3 {[%clk 0:01:09]} 17... Bh6 {[%clk 0:01:25.1]} 18. d5 {[%clk
0:00:56.2]} 18... exd5 {[%clk 0:01:19]} 19. Nf4 {[%clk 0:00:54.8]} 19... Bxf4
{[%clk 0:00:35.8]} 20. Rxf4 {[%clk 0:00:53.1]} 20... Qe7 {[%clk 0:00:31.4]} 21.
cxd5 {[%clk 0:00:51.5]} 21... cxd5 {[%clk 0:00:32.3]} 22. Rxd5 {[%clk
0:00:31.7]} 22... Rac8 {[%clk 0:00:31.1]} 23. h3 {[%clk 0:00:25.7]} 23... Rc6
{[%clk 0:00:25.1]} 24. Qd3 {[%clk 0:00:22.2]} 24... Rc7 {[%clk 0:00:17.8]} 25.
Qd4 {[%clk 0:00:19.4]} 25... Nf6 {[%clk 0:00:16.9]} 26. Rd6 {[%clk 0:00:15.9]}
26... Rc6 {[%clk 0:00:11.8]} 27. Rxc6 {[%clk 0:00:14.3]} 27... bxc6 {[%clk
0:00:12.7]} 28. e4 {[%clk 0:00:14.8]} 28... c5 {[%clk 0:00:03.5]} 29. Qc4+
{[%clk 0:00:11.6]} 29... Qf7 {[%clk 0:00:02.4]} 30. exf5 {[%clk 0:00:11.9]}
30... Qxc4 {[%clk 0:00:02.1]} 31. Rxc4 {[%clk 0:00:12.8]} 31... gxf5 {[%clk
0:00:01.6]} 32. Bxf6 {[%clk 0:00:09.4]} 32... Rxf6 {[%clk 0:00:01.2]} 33. Rxc5
{[%clk 0:00:09.8]} 33... Rd6 {[%clk 0:00:01.6]} 34. Rxf5 {[%clk 0:00:09.6]}
34... Rd1+ {[%clk 0:00:02.2]} 35. Kh2 {[%clk 0:00:09.5]} 35... Rd2 {[%clk
0:00:02.7]} 36. Ra5 {[%clk 0:00:10]} 36... Rd7 {[%clk 0:00:02.7]} 37. Ra6 {[%clk
0:00:10.4]} 37... Kg7 {[%clk 0:00:02.9]} 38. h4 {[%clk 0:00:10.9]} 38... Rc7
{[%clk 0:00:03.7]} 39. Kh3 {[%clk 0:00:11]} 39... Rd7 {[%clk 0:00:04.6]} 40. g3
{[%clk 0:00:11.5]} 40... Rc7 {[%clk 0:00:05.5]} 41. h5 {[%clk 0:00:12]} 41...
Rd7 {[%clk 0:00:05.9]} 42. Kh4 {[%clk 0:00:12]} 42... Rc7 {[%clk 0:00:06.4]} 43.
g4 {[%clk 0:00:12.2]} 43... Rd7 {[%clk 0:00:06.8]} 44. h6+ {[%clk 0:00:12.5]}
44... Kf7 {[%clk 0:00:06.8]} 45. a4 {[%clk 0:00:11.1]} 45... Rc7 {[%clk
0:00:07]} 46. Kh5 {[%clk 0:00:10.7]} 46... Rb7 {[%clk 0:00:07.4]} 47. g5 {[%clk
0:00:10]} 47... Rc7 {[%clk 0:00:06]} 48. Kg4 {[%clk 0:00:09.6]} 48... Rd7 {[%clk
0:00:05.2]} 49. Kf5 {[%clk 0:00:09.3]} 49... Rb7 {[%clk 0:00:05.4]} 50. Ra5
{[%clk 0:00:07.3]} 50... Re7 {[%clk 0:00:03.8]} 51. b4 {[%clk 0:00:07.5]} 51...
Rb7 {[%clk 0:00:03.7]} 52. b5 {[%clk 0:00:07.4]} 52... Rc7 {[%clk 0:00:04.2]}
53. Ra6 {[%clk 0:00:07.3]} 53... Rc5+ {[%clk 0:00:04]} 54. Kf4 {[%clk
0:00:07.7]} 54... Rc4+ {[%clk 0:00:04.4]} 55. Ke5 {[%clk 0:00:08.1]} 55... Rc5+
{[%clk 0:00:04.4]} 56. Kd6 {[%clk 0:00:08.7]} 56... Rxg5 {[%clk 0:00:04.3]} 57.
Rxa7+ {[%clk 0:00:09.2]} 57... Kg6 {[%clk 0:00:05.1]} 58. b6 {[%clk 0:00:09.9]}
58... Kxh6 {[%clk 0:00:05]} 59. b7 {[%clk 0:00:10.3]} 59... Rg8 {[%clk
0:00:05.3]} 60. Ra8 {[%clk 0:00:10.4]} 60... Rg7 {[%clk 0:00:06.2]} 61. b8=Q
{[%clk 0:00:10.2]} 1-0

[Event "*** Titled Tuesday Blitz"]
[Site "Chess.com"]
[Date "2020.10.20"]
[Round "5"]
[White "KarstenHansch"]
[Black "Sven_Tica"]
[Result "1-0"]
[WhiteElo "2499"]
[BlackElo "2648"]
[TimeControl "180+1"]
[EndTime "10:58:19 PDT"]
[Termination "KarstenHansch won by resignation"]

1. e4 {[%clk 0:03:00.9]} 1... c5 {[%clk 0:03:00.1]} 2. Nf3 {[%clk 0:03:00.4]}
2... Nf6 {[%clk 0:03:00.8]} 3. e5 {[%clk 0:02:59.4]} 3... Nd5 {[%clk 0:03:01.1]}
4. Nc3 {[%clk 0:02:59.3]} 4... e6 {[%clk 0:03:01.8]} 5. Nxd5 {[%clk 0:02:59.3]}
5... exd5 {[%clk 0:03:02.7]} 6. d4 {[%clk 0:02:59.3]} 6... Nc6 {[%clk
0:03:03.4]} 7. dxc5 {[%clk 0:02:57.3]} 7... Bxc5 {[%clk 0:03:04.3]} 8. Qxd5
{[%clk 0:02:56.6]} 8... Qb6 {[%clk 0:03:05]} 9. Bc4 {[%clk 0:02:56.2]} 9...
Bxf2+ {[%clk 0:03:05.1]} 10. Ke2 {[%clk 0:02:56.2]} 10... O-O {[%clk 0:03:05.7]}
11. Rf1 {[%clk 0:02:55.3]} 11... Bc5 {[%clk 0:03:06.3]} 12. Ng5 {[%clk 0:02:50]}
12... Nd4+ {[%clk 0:03:06.8]} 13. Kd1 {[%clk 0:02:49.4]} 13... Ne6 {[%clk
0:03:07.5]} 14. Ne4 {[%clk 0:02:45.8]} 14... d6 {[%clk 0:03:07.8]} 15. exd6
{[%clk 0:02:43.1]} 15... Rd8 {[%clk 0:03:06.8]} 16. Bd2 {[%clk 0:02:42.3]} 16...
Bxd6 {[%clk 0:02:42.3]} 17. Qh5 {[%clk 0:02:35.8]} 17... Bf4 {[%clk 0:02:29.7]}
18. Rxf4 {[%clk 0:02:08.5]} 18... Nxf4 {[%clk 0:02:28.5]} 19. Qxf7+ {[%clk
0:02:08.3]} 19... Kh8 {[%clk 0:02:29.2]} 20. Qxf4 {[%clk 0:02:08.3]} 20... Bg4+
{[%clk 0:02:19.3]} 21. Qxg4 {[%clk 0:02:02.3]} 21... Qg1+ {[%clk 0:02:18.5]} 22.
Ke2 {[%clk 0:02:02.5]} 22... Qxa1 {[%clk 0:02:17.7]} 23. Ng5 {[%clk 0:02:02.7]}
23... Re8+ {[%clk 0:02:15.4]} 24. Be3 {[%clk 0:02:00.5]} 24... Rxe3+ {[%clk
0:02:02.9]} 25. Kxe3 {[%clk 0:02:00]} 25... Qe1+ {[%clk 0:02:03.6]} 26. Kd3
{[%clk 0:01:56.4]} 26... Rd8+ {[%clk 0:02:02.4]} 27. Bd5 {[%clk 0:01:53.2]}
27... Qf1+ {[%clk 0:01:27.5]} 28. Kc3 {[%clk 0:01:46]} 28... Qf6+ {[%clk
0:01:22.7]} 29. Kc4 {[%clk 0:01:21.1]} 29... b5+ {[%clk 0:01:16.4]} 30. Kb3
{[%clk 0:01:18.6]} 30... Rf8 {[%clk 0:00:51.9]} 31. Nf7+ {[%clk 0:01:12.8]}
31... Rxf7 {[%clk 0:00:52.1]} 32. Bxf7 {[%clk 0:01:13.7]} 32... Qxf7+ {[%clk
0:00:53]} 33. Kb4 {[%clk 0:01:13.9]} 33... h5 {[%clk 0:00:44.2]} 34. Qc8+ {[%clk
0:01:13.1]} 34... Kh7 {[%clk 0:00:44]} 35. Kxb5 {[%clk 0:01:13.4]} 35... Qxa2
{[%clk 0:00:43.6]} 36. Qf5+ {[%clk 0:01:11]} 36... g6 {[%clk 0:00:44.1]} 37.
Qd7+ {[%clk 0:01:10.3]} 37... Kh6 {[%clk 0:00:44.1]} 38. Qd2+ {[%clk 0:01:09.8]}
38... Kh7 {[%clk 0:00:44]} 39. b3 {[%clk 0:01:10]} 39... Qa1 {[%clk 0:00:40.3]}
40. c4 {[%clk 0:01:04.2]} 40... Qe5+ {[%clk 0:00:37.9]} 41. Qd5 {[%clk
0:01:04.2]} 41... Qb8+ {[%clk 0:00:38.3]} 42. Ka4 {[%clk 0:01:03.4]} 42... Qxh2
{[%clk 0:00:38.7]} 43. c5 {[%clk 0:01:03]} 43... Qf4+ {[%clk 0:00:37.3]} 44. Qc4
{[%clk 0:01:01.2]} 44... Qc7 {[%clk 0:00:37.3]} 45. c6 {[%clk 0:01:01.4]} 45...
Kh6 {[%clk 0:00:34.9]} 46. Qd5 {[%clk 0:00:57.6]} 46... a5 {[%clk 0:00:32.4]}
47. Qd2+ {[%clk 0:00:55.4]} 47... g5 {[%clk 0:00:30.3]} 48. Qd5 {[%clk
0:00:41.7]} 48... g4 {[%clk 0:00:23.4]} 49. Kb5 {[%clk 0:00:40.5]} 49... h4
{[%clk 0:00:20.1]} 50. Qd7 {[%clk 0:00:35]} 50... Qb8+ {[%clk 0:00:18.5]} 51.
Kxa5 {[%clk 0:00:35.3]} 51... Qxb3 {[%clk 0:00:18.1]} 52. c7 {[%clk 0:00:33.9]}
52... Qc3+ {[%clk 0:00:18]} 53. Kb6 {[%clk 0:00:33.8]} 53... Qb4+ {[%clk
0:00:17.9]} 54. Qb5 {[%clk 0:00:33.2]} 54... Qd4+ {[%clk 0:00:18.3]} 55. Kb7
{[%clk 0:00:33.1]} 55... Qg7 {[%clk 0:00:16]} 56. Qc6+ {[%clk 0:00:32.7]} 56...
Kg5 {[%clk 0:00:16.3]} 57. Kb8 {[%clk 0:00:32.3]} 57... Qe5 {[%clk 0:00:16]} 58.
Ka8 {[%clk 0:00:29.5]} 58... Qa5+ {[%clk 0:00:15.9]} 59. Kb7 {[%clk 0:00:29.6]}
59... Qb4+ {[%clk 0:00:16.1]} 60. Ka6 {[%clk 0:00:29.8]} 60... Qa3+ {[%clk
0:00:16]} 61. Kb6 {[%clk 0:00:29.7]} 61... Qf8 {[%clk 0:00:10.3]} 62. c8=Q
{[%clk 0:00:29.3]} 62... Qxc8 {[%clk 0:00:10.9]} 63. Qxc8 {[%clk 0:00:29.5]}
63... Kf4 {[%clk 0:00:11.8]} 64. Qc2 {[%clk 0:00:26.9]} 64... Kg3 {[%clk
0:00:11.9]} 65. Qe2 {[%clk 0:00:25.2]} 65... h3 {[%clk 0:00:04.3]} 66. gxh3
{[%clk 0:00:25.5]} 66... gxh3 {[%clk 0:00:05.2]} 67. Qf1 {[%clk 0:00:25.6]}
67... Kh2 {[%clk 0:00:05.3]} 68. Kc5 {[%clk 0:00:25.4]} 1-0